[Event "Late-Titled-Tuesday-Blitz-March-05-2024"]
[Site "Chess.com"]
[Date "2024.03.05"]
[Round "6"]
[White "OverallStranger"]
[Black "Bugcrusher"]
[Result "1/2-1/2"]
[WhiteElo "2375"]
[BlackElo "2526"]
[TimeControl "180+1"]
[EndTime "15:05:28 PST"]
[Termination "Game drawn by repetition"]

1. e4 {[%clk 0:02:55.3]} 1... c6 {[%clk 0:02:58.8]} 2. d4 {[%clk 0:02:49.9]}
2... d5 {[%clk 0:02:58]} 3. exd5 {[%clk 0:02:49.6]} 3... cxd5 {[%clk 0:02:57.2]}
4. Bd3 {[%clk 0:02:50.2]} 4... Nc6 {[%clk 0:02:55.9]} 5. c3 {[%clk 0:02:50.8]}
5... Nf6 {[%clk 0:02:55]} 6. Bf4 {[%clk 0:02:50.5]} 6... Bg4 {[%clk 0:02:55]} 7.
Qb3 {[%clk 0:02:49.2]} 7... Qd7 {[%clk 0:02:55.2]} 8. Nd2 {[%clk 0:02:49]} 8...
e6 {[%clk 0:02:55.2]} 9. Ngf3 {[%clk 0:02:49.6]} 9... Bxf3 {[%clk 0:02:55.2]}
10. Nxf3 {[%clk 0:02:49.5]} 10... Bd6 {[%clk 0:02:55.5]} 11. Bxd6 {[%clk
0:02:50.2]} 11... Qxd6 {[%clk 0:02:55.7]} 12. O-O {[%clk 0:02:51]} 12... O-O
{[%clk 0:02:55.4]} 13. Rae1 {[%clk 0:02:50.4]} 13... Qc7 {[%clk 0:02:55.3]} 14.
Qc2 {[%clk 0:02:49.8]} 14... Rab8 {[%clk 0:02:53.6]} 15. Ne5 {[%clk 0:02:49.4]}
15... g6 {[%clk 0:02:42.8]} 16. f4 {[%clk 0:02:41.6]} 16... b5 {[%clk
0:02:39.1]} 17. Re3 {[%clk 0:02:31.3]} 17... b4 {[%clk 0:02:34.6]} 18. Rh3
{[%clk 0:02:30.3]} 18... bxc3 {[%clk 0:02:30.9]} 19. bxc3 {[%clk 0:02:31.2]}
19... Rfc8 {[%clk 0:02:27.2]} 20. Qf2 {[%clk 0:02:28.3]} 20... Nxe5 {[%clk
0:01:02.1]} 21. fxe5 {[%clk 0:02:25.2]} 21... Ng4 {[%clk 0:01:01.8]} 22. Qf4
{[%clk 0:01:51.5]} 22... h5 {[%clk 0:01:01.1]} 23. Be2 {[%clk 0:01:51.7]} 23...
f5 {[%clk 0:00:24.3]} 24. exf6 {[%clk 0:01:31.3]} 24... Qxf4 {[%clk 0:00:22.8]}
25. Rxf4 {[%clk 0:01:31.2]} 25... Nh6 {[%clk 0:00:22]} 26. Re3 {[%clk
0:01:10.8]} 26... Kf7 {[%clk 0:00:21.9]} 27. h3 {[%clk 0:01:06.4]} 27... Rb2
{[%clk 0:00:20.9]} 28. a4 {[%clk 0:00:44.3]} 28... Rc2 {[%clk 0:00:20.2]} 29.
Rff3 {[%clk 0:00:42.7]} 29... Nf5 {[%clk 0:00:19.4]} 30. Rd3 {[%clk 0:00:43.3]}
30... Rxe2 {[%clk 0:00:17.9]} 31. g4 {[%clk 0:00:42.6]} 31... hxg4 {[%clk
0:00:17.3]} 32. hxg4 {[%clk 0:00:43.5]} 32... Nd6 {[%clk 0:00:17.4]} 33. g5
{[%clk 0:00:43]} 33... Ne4 {[%clk 0:00:16.7]} 34. Rh3 {[%clk 0:00:23.5]} 34...
Nxg5 {[%clk 0:00:15.6]} 35. Rhg3 {[%clk 0:00:23.4]} 35... Ne4 {[%clk 0:00:15.5]}
36. Rh3 {[%clk 0:00:24]} 36... Rc2 {[%clk 0:00:15]} 37. Rdf3 {[%clk 0:00:21.7]}
37... Nxf6 {[%clk 0:00:13.7]} 38. Rh7+ {[%clk 0:00:20.5]} 38... Kg8 {[%clk
0:00:13.8]} 39. Rxa7 {[%clk 0:00:20.6]} 39... Rf8 {[%clk 0:00:12.7]} 40. Rg3
{[%clk 0:00:20.5]} 40... Rf7 {[%clk 0:00:11.5]} 41. Rxg6+ {[%clk 0:00:20.2]}
41... Kf8 {[%clk 0:00:11.7]} 42. Ra8+ {[%clk 0:00:19.5]} 42... Ke7 {[%clk
0:00:11.9]} 43. Ra7+ {[%clk 0:00:19.7]} 43... Nd7 {[%clk 0:00:12.2]} 44. Rg3
{[%clk 0:00:14.7]} 44... Rf8 {[%clk 0:00:11]} 45. Rg7+ {[%clk 0:00:14.5]} 45...
Rf7 {[%clk 0:00:11.2]} 46. Rg3 {[%clk 0:00:15.4]} 46... Rf8 {[%clk 0:00:11.1]}
47. Rg7+ {[%clk 0:00:15.7]} 47... Rf7 {[%clk 0:00:11.4]} 48. Rg3 {[%clk
0:00:16.4]} 1/2-1/2

[Event "Late-Titled-Tuesday-Blitz-March-05-2024"]
[Site "Chess.com"]
[Date "2024.03.05"]
[Round "6"]
[White "McCarthyStone"]
[Black "Arlo2024"]
[Result "1-0"]
[WhiteElo "2362"]
[BlackElo "2281"]
[TimeControl "180+1"]
[EndTime "15:05:29 PST"]
[Termination "McCarthyStone won on time"]

1. c4 {[%clk 0:03:00.9]} 1... c5 {[%clk 0:02:59.5]} 2. g3 {[%clk 0:03:00.5]}
2... Nc6 {[%clk 0:02:59.9]} 3. Bg2 {[%clk 0:03:01.1]} 3... g6 {[%clk 0:03:00.6]}
4. Nc3 {[%clk 0:03:01.7]} 4... Bg7 {[%clk 0:03:01.2]} 5. e4 {[%clk 0:03:02.1]}
5... e6 {[%clk 0:02:57]} 6. Nge2 {[%clk 0:02:56.2]} 6... Nge7 {[%clk 0:02:57.7]}
7. d3 {[%clk 0:02:56.5]} 7... Nd4 {[%clk 0:02:56.5]} 8. Be3 {[%clk 0:02:53]}
8... Nec6 {[%clk 0:02:55.2]} 9. O-O {[%clk 0:02:46.4]} 9... O-O {[%clk
0:02:53.3]} 10. Qd2 {[%clk 0:02:46.8]} 10... Re8 {[%clk 0:02:41]} 11. Bh6 {[%clk
0:02:46.5]} 11... Bh8 {[%clk 0:02:40.9]} 12. f4 {[%clk 0:02:46]} 12... d6 {[%clk
0:02:39.7]} 13. h4 {[%clk 0:02:26.7]} 13... Nxe2+ {[%clk 0:02:35]} 14. Nxe2
{[%clk 0:02:23.5]} 14... Nd4 {[%clk 0:02:23]} 15. h5 {[%clk 0:02:18.4]} 15...
Bd7 {[%clk 0:01:59.2]} 16. Kh1 {[%clk 0:02:09.6]} 16... f5 {[%clk 0:01:47.6]}
17. Nxd4 {[%clk 0:02:07.8]} 17... Bxd4 {[%clk 0:01:46.4]} 18. exf5 {[%clk
0:02:05.6]} 18... gxf5 {[%clk 0:01:42.5]} 19. Rae1 {[%clk 0:01:47.3]} 19... Kh8
{[%clk 0:01:30.4]} 20. Bg5 {[%clk 0:01:14.5]} 20... Bf6 {[%clk 0:01:29.6]} 21.
b4 {[%clk 0:01:00.7]} 21... Rg8 {[%clk 0:01:09.5]} 22. Bxf6+ {[%clk 0:00:40]}
22... Qxf6 {[%clk 0:01:10.4]} 23. Kh2 {[%clk 0:00:35.1]} 23... Rab8 {[%clk
0:00:32.6]} 24. b5 {[%clk 0:00:34.9]} 24... b6 {[%clk 0:00:30]} 25. a4 {[%clk
0:00:34.4]} 25... Be8 {[%clk 0:00:24.7]} 26. Qe2 {[%clk 0:00:30.4]} 26... Bf7
{[%clk 0:00:25]} 27. Bf3 {[%clk 0:00:27.1]} 27... Rg7 {[%clk 0:00:20.4]} 28. Rf2
{[%clk 0:00:20.8]} 28... Rbg8 {[%clk 0:00:20.7]} 29. Rg2 {[%clk 0:00:21.4]}
29... Qh6 {[%clk 0:00:20.5]} 30. Reg1 {[%clk 0:00:20.7]} 30... Qf6 {[%clk
0:00:17.6]} 31. Qe3 {[%clk 0:00:20.6]} 31... h6 {[%clk 0:00:16]} 32. Qf2 {[%clk
0:00:19.4]} 32... Qc3 {[%clk 0:00:15.4]} 33. Qe3 {[%clk 0:00:17.2]} 33... Qb3
{[%clk 0:00:13.9]} 34. g4 {[%clk 0:00:17.4]} 34... fxg4 {[%clk 0:00:11.4]} 35.
Bxg4 {[%clk 0:00:18.3]} 35... Qxa4 {[%clk 0:00:10]} 36. Bxe6 {[%clk 0:00:17.4]}
36... Rxg2+ {[%clk 0:00:08]} 37. Rxg2 {[%clk 0:00:18.3]} 37... Rxg2+ {[%clk
0:00:07.6]} 38. Kxg2 {[%clk 0:00:19.2]} 38... Bxe6 {[%clk 0:00:07.2]} 39. Qxe6
{[%clk 0:00:19.1]} 39... Qc2+ {[%clk 0:00:06.7]} 40. Kg1 {[%clk 0:00:18.5]}
40... Qd1+ {[%clk 0:00:05]} 41. Kf2 {[%clk 0:00:18.6]} 41... Qd2+ {[%clk
0:00:05.2]} 42. Kg1 {[%clk 0:00:16.9]} 42... Qd1+ {[%clk 0:00:03.2]} 43. Kg2
{[%clk 0:00:17.3]} 43... Qd2+ {[%clk 0:00:02.3]} 44. Kg3 {[%clk 0:00:17.8]}
44... Qxd3+ {[%clk 0:00:02.8]} 45. Kg4 {[%clk 0:00:18]} 1-0

[Event "Late-Titled-Tuesday-Blitz-March-05-2024"]
[Site "Chess.com"]
[Date "2024.03.05"]
[Round "6"]
[White "SpeedofLight0"]
[Black "Hikaru"]
[Result "0-1"]
[WhiteElo "3094"]
[BlackElo "3265"]
[TimeControl "180+1"]
[EndTime "15:05:30 PST"]
[Termination "Hikaru won by resignation"]

1. d4 {[%clk 0:03:00.9]} 1... d5 {[%clk 0:03:00.9]} 2. Nc3 {[%clk 0:03:01]} 2...
Nf6 {[%clk 0:03:00.9]} 3. Bf4 {[%clk 0:03:01.3]} 3... a6 {[%clk 0:02:59.4]} 4.
e3 {[%clk 0:03:01.2]} 4... e6 {[%clk 0:02:52.7]} 5. Bd3 {[%clk 0:03:00.8]} 5...
c5 {[%clk 0:02:52.2]} 6. dxc5 {[%clk 0:03:00.7]} 6... Bxc5 {[%clk 0:02:48.9]} 7.
Nf3 {[%clk 0:03:01.1]} 7... Nc6 {[%clk 0:02:48.8]} 8. O-O {[%clk 0:03:01.1]}
8... O-O {[%clk 0:02:31.4]} 9. e4 {[%clk 0:03:01]} 9... h6 {[%clk 0:02:32]} 10.
e5 {[%clk 0:02:59.4]} 10... Nd7 {[%clk 0:02:28.8]} 11. Re1 {[%clk 0:02:58.8]}
11... f5 {[%clk 0:02:18.3]} 12. h4 {[%clk 0:02:47.9]} 12... Be7 {[%clk 0:02:10]}
13. h5 {[%clk 0:02:46.4]} 13... Qe8 {[%clk 0:02:09.2]} 14. Nh2 {[%clk
0:02:42.1]} 14... Bg5 {[%clk 0:02:01.9]} 15. g3 {[%clk 0:02:32.1]} 15... b5
{[%clk 0:02:01.8]} 16. Bf1 {[%clk 0:02:17.4]} 16... Bb7 {[%clk 0:02:00.8]} 17.
Bg2 {[%clk 0:02:17.3]} 17... Kh8 {[%clk 0:01:55.4]} 18. a3 {[%clk 0:02:10.5]}
18... Rc8 {[%clk 0:01:51.7]} 19. Kh1 {[%clk 0:02:02.3]} 19... Na5 {[%clk
0:01:42.2]} 20. Ne2 {[%clk 0:01:40.1]} 20... Qxh5 {[%clk 0:01:38.2]} 21. Nd4
{[%clk 0:01:35.3]} 21... Qxd1 {[%clk 0:01:29.5]} 22. Raxd1 {[%clk 0:01:36.2]}
22... Rfe8 {[%clk 0:01:17]} 23. Bxg5 {[%clk 0:01:34.1]} 23... hxg5 {[%clk
0:01:17.9]} 24. Nhf3 {[%clk 0:01:34.6]} 24... Nc6 {[%clk 0:01:09.3]} 25. Nxg5
{[%clk 0:01:25.3]} 25... Nxd4 {[%clk 0:00:57.2]} 26. Rxd4 {[%clk 0:01:26.2]}
26... Rxc2 {[%clk 0:00:57.2]} 27. Nf7+ {[%clk 0:01:23.7]} 27... Kg8 {[%clk
0:00:57.6]} 28. Nd6 {[%clk 0:01:24.4]} 28... Rb8 {[%clk 0:00:58.3]} 29. Nxb7
{[%clk 0:01:05.4]} 29... Rxb7 {[%clk 0:00:59.2]} 30. Rxd5 {[%clk 0:01:05.9]}
30... Rbc7 {[%clk 0:00:59.6]} 31. Rd6 {[%clk 0:01:02.5]} 31... Kf7 {[%clk
0:00:57]} 32. Kg1 {[%clk 0:00:59.4]} 32... a5 {[%clk 0:00:47.4]} 33. b4 {[%clk
0:00:35.3]} 33... axb4 {[%clk 0:00:41.2]} 34. axb4 {[%clk 0:00:36.2]} 34... Ke7
{[%clk 0:00:37]} 35. f4 {[%clk 0:00:31.7]} 35... Rb2 {[%clk 0:00:29.6]} 36. Red1
{[%clk 0:00:30.3]} 36... Rxb4 {[%clk 0:00:26.8]} 37. Rc6 {[%clk 0:00:18.9]}
37... Rxc6 {[%clk 0:00:21.6]} 38. Bxc6 {[%clk 0:00:19.8]} 38... Nc5 {[%clk
0:00:22.4]} 39. Ra1 {[%clk 0:00:19.6]} 39... Ra4 {[%clk 0:00:13.6]} 40. Rc1
{[%clk 0:00:19.7]} 40... Rc4 {[%clk 0:00:12.6]} 41. Ra1 {[%clk 0:00:19.4]} 41...
b4 {[%clk 0:00:12.4]} 42. Ra7+ {[%clk 0:00:19]} 42... Kd8 {[%clk 0:00:11.1]} 43.
Bb5 {[%clk 0:00:10.7]} 43... Rc1+ {[%clk 0:00:10.3]} 44. Kf2 {[%clk 0:00:11.3]}
44... b3 {[%clk 0:00:11.1]} 45. Bc4 {[%clk 0:00:03.2]} 45... Rxc4 {[%clk
0:00:10.9]} 0-1

[Event "Late-Titled-Tuesday-Blitz-March-05-2024"]
[Site "Chess.com"]
[Date "2024.03.05"]
[Round "6"]
[White "ljuks68"]
[Black "Statham_01"]
[Result "0-1"]
[WhiteElo "2434"]
[BlackElo "2596"]
[TimeControl "180+1"]
[EndTime "15:05:30 PST"]
[Termination "Statham_01 won on time"]

1. e4 {[%clk 0:03:00.9]} 1... e5 {[%clk 0:02:59.7]} 2. Nf3 {[%clk 0:03:01.1]}
2... Nf6 {[%clk 0:03:00.2]} 3. Nxe5 {[%clk 0:03:00.5]} 3... Nc6 {[%clk
0:03:00.6]} 4. Nf3 {[%clk 0:03:00.3]} 4... Nxe4 {[%clk 0:02:59.9]} 5. d3 {[%clk
0:03:00.8]} 5... Nf6 {[%clk 0:03:00]} 6. d4 {[%clk 0:03:01.3]} 6... d5 {[%clk
0:03:00.6]} 7. Bb5 {[%clk 0:03:01.6]} 7... Bd6 {[%clk 0:03:00.6]} 8. O-O {[%clk
0:03:01.8]} 8... O-O {[%clk 0:03:00.6]} 9. Bg5 {[%clk 0:03:02.2]} 9... h6 {[%clk
0:03:00.2]} 10. Bh4 {[%clk 0:03:02.2]} 10... Bg4 {[%clk 0:03:00.3]} 11. c3
{[%clk 0:03:01.9]} 11... Be7 {[%clk 0:02:52.3]} 12. Nbd2 {[%clk 0:02:59.3]}
12... Ne4 {[%clk 0:02:49.6]} 13. Bxe7 {[%clk 0:02:57.8]} 13... Nxe7 {[%clk
0:02:46.1]} 14. Qc2 {[%clk 0:02:57.6]} 14... Nxd2 {[%clk 0:02:20]} 15. Nxd2
{[%clk 0:02:57.5]} 15... Ng6 {[%clk 0:02:17.3]} 16. h3 {[%clk 0:02:48.4]} 16...
Be6 {[%clk 0:02:12.5]} 17. f4 {[%clk 0:02:11.3]} 17... Nh4 {[%clk 0:01:47.8]}
18. Bd3 {[%clk 0:01:59.2]} 18... f5 {[%clk 0:01:06.7]} 19. Rae1 {[%clk
0:01:54.9]} 19... Qf6 {[%clk 0:01:05.2]} 20. g3 {[%clk 0:01:45.5]} 20... Ng6
{[%clk 0:01:00.2]} 21. Nf3 {[%clk 0:01:43.8]} 21... Rae8 {[%clk 0:00:57.6]} 22.
Ne5 {[%clk 0:01:43.6]} 22... Nxe5 {[%clk 0:00:50.2]} 23. Rxe5 {[%clk 0:01:43]}
23... Bd7 {[%clk 0:00:47.7]} 24. Rfe1 {[%clk 0:01:42]} 24... Rxe5 {[%clk
0:00:35.5]} 25. Rxe5 {[%clk 0:01:41.6]} 25... g5 {[%clk 0:00:23.5]} 26. Qb3
{[%clk 0:01:11.5]} 26... Bc6 {[%clk 0:00:14.5]} 27. Rxf5 {[%clk 0:00:56.8]}
27... Qe6 {[%clk 0:00:13.1]} 28. Rxf8+ {[%clk 0:00:53.1]} 28... Kxf8 {[%clk
0:00:14]} 29. Qd1 {[%clk 0:00:38.2]} 29... Qxh3 {[%clk 0:00:13.8]} 30. Qf3
{[%clk 0:00:34.6]} 30... g4 {[%clk 0:00:05]} 31. Qf2 {[%clk 0:00:20.7]} 31...
Qh5 {[%clk 0:00:03.1]} 32. Qe3 {[%clk 0:00:14.2]} 32... Bd7 {[%clk 0:00:03.4]}
33. Qe5 {[%clk 0:00:04.6]} 33... Qxe5 {[%clk 0:00:03.7]} 34. dxe5 {[%clk
0:00:04.2]} 34... c5 {[%clk 0:00:04.3]} 35. f5 {[%clk 0:00:02.4]} 35... Ke7
{[%clk 0:00:03.7]} 0-1

[Event "Late-Titled-Tuesday-Blitz-March-05-2024"]
[Site "Chess.com"]
[Date "2024.03.05"]
[Round "6"]
[White "yuriydovzik"]
[Black "grandcoach"]
[Result "1-0"]
[WhiteElo "2078"]
[BlackElo "2204"]
[TimeControl "180+1"]
[EndTime "15:05:30 PST"]
[Termination "yuriydovzik won on time"]

1. a3 {[%clk 0:02:54.2]} 1... e5 {[%clk 0:02:57.8]} 2. b4 {[%clk 0:02:52.7]}
2... d5 {[%clk 0:02:54.9]} 3. Bb2 {[%clk 0:02:52]} 3... Bd6 {[%clk 0:02:54.6]}
4. c4 {[%clk 0:02:45.5]} 4... c6 {[%clk 0:02:52.4]} 5. e3 {[%clk 0:02:41.2]}
5... Nf6 {[%clk 0:02:48.1]} 6. Nf3 {[%clk 0:02:32.2]} 6... Qe7 {[%clk
0:02:46.2]} 7. Be2 {[%clk 0:02:28.7]} 7... O-O {[%clk 0:02:44.9]} 8. d4 {[%clk
0:02:12]} 8... e4 {[%clk 0:02:35.9]} 9. Ne5 {[%clk 0:02:05]} 9... Nbd7 {[%clk
0:02:35.3]} 10. Nxd7 {[%clk 0:02:02.4]} 10... Bxd7 {[%clk 0:02:31.5]} 11. Nd2
{[%clk 0:01:46.4]} 11... Qe6 {[%clk 0:02:08.5]} 12. O-O {[%clk 0:01:39.7]} 12...
Qf5 {[%clk 0:02:00.7]} 13. f4 {[%clk 0:01:18.5]} 13... exf3 {[%clk 0:01:56.5]}
14. Rxf3 {[%clk 0:01:16.3]} 14... Qg6 {[%clk 0:01:43.1]} 15. Nf1 {[%clk
0:01:07.2]} 15... Bg4 {[%clk 0:01:36.7]} 16. Rf2 {[%clk 0:00:59.8]} 16... Rfe8
{[%clk 0:01:35.5]} 17. Bxg4 {[%clk 0:00:44.2]} 17... Nxg4 {[%clk 0:01:35.1]} 18.
Rf3 {[%clk 0:00:41.5]} 18... Re6 {[%clk 0:01:26.2]} 19. cxd5 {[%clk 0:00:33.1]}
19... cxd5 {[%clk 0:01:27.1]} 20. Qb3 {[%clk 0:00:31.7]} 20... Rd8 {[%clk
0:01:18.9]} 21. Rc1 {[%clk 0:00:30.7]} 21... h5 {[%clk 0:01:03.5]} 22. h3 {[%clk
0:00:27]} 22... Nh6 {[%clk 0:00:51.3]} 23. Qc2 {[%clk 0:00:22]} 23... Qg5 {[%clk
0:00:34.3]} 24. Qd3 {[%clk 0:00:20.5]} 24... g6 {[%clk 0:00:31.5]} 25. Rc2
{[%clk 0:00:20]} 25... Nf5 {[%clk 0:00:31.1]} 26. Bc1 {[%clk 0:00:19.1]} 26...
Nh4 {[%clk 0:00:30.3]} 27. Rff2 {[%clk 0:00:18.4]} 27... Re4 {[%clk 0:00:24.7]}
28. Qb5 {[%clk 0:00:15.4]} 28... Bg3 {[%clk 0:00:16.8]} 29. Rfe2 {[%clk
0:00:13.2]} 29... Bb8 {[%clk 0:00:12.4]} 30. Qxb7 {[%clk 0:00:11.7]} 30... Nf3+
{[%clk 0:00:11.2]} 31. Kf2 {[%clk 0:00:10.4]} 31... Nh4 {[%clk 0:00:07.1]} 32.
Kg1 {[%clk 0:00:09.6]} 32... Qf6 {[%clk 0:00:04.8]} 33. Qc6 {[%clk 0:00:08.3]}
33... Qe7 {[%clk 0:00:03.6]} 34. Qc5 {[%clk 0:00:07]} 34... Qd7 {[%clk
0:00:02.1]} 35. Qc6 {[%clk 0:00:06.5]} 35... Qe7 {[%clk 0:00:01.8]} 36. Qc5
{[%clk 0:00:06.3]} 36... Bd6 {[%clk 0:00:01.9]} 37. Qc6 {[%clk 0:00:05.7]} 37...
Nf5 {[%clk 0:00:01.2]} 38. Bd2 {[%clk 0:00:03.4]} 1-0

[Event "Late-Titled-Tuesday-Blitz-March-05-2024"]
[Site "Chess.com"]
[Date "2024.03.05"]
[Round "6"]
[White "Mikhal867"]
[Black "HaryKane"]
[Result "1-0"]
[WhiteElo "2497"]
[BlackElo "2591"]
[TimeControl "180+1"]
[EndTime "15:05:32 PST"]
[Termination "Mikhal867 won on time"]

1. d4 {[%clk 0:02:52.1]} 1... Nf6 {[%clk 0:02:57.5]} 2. c4 {[%clk 0:02:51.7]}
2... g6 {[%clk 0:02:54.2]} 3. f3 {[%clk 0:02:51.4]} 3... Bg7 {[%clk 0:02:52.6]}
4. e4 {[%clk 0:02:52]} 4... d6 {[%clk 0:02:51.5]} 5. Nc3 {[%clk 0:02:52.6]} 5...
c6 {[%clk 0:02:46.1]} 6. Be3 {[%clk 0:02:52.3]} 6... a6 {[%clk 0:02:46.5]} 7. a4
{[%clk 0:02:49.8]} 7... O-O {[%clk 0:02:46]} 8. Bd3 {[%clk 0:02:46.7]} 8... c5
{[%clk 0:02:32.3]} 9. d5 {[%clk 0:02:41.3]} 9... Nbd7 {[%clk 0:02:22.5]} 10. f4
{[%clk 0:02:37.1]} 10... e6 {[%clk 0:02:20.7]} 11. dxe6 {[%clk 0:02:30.9]} 11...
fxe6 {[%clk 0:02:20.8]} 12. Nh3 {[%clk 0:02:24.8]} 12... Qb6 {[%clk 0:02:15.2]}
13. Qe2 {[%clk 0:02:04]} 13... d5 {[%clk 0:01:50.4]} 14. cxd5 {[%clk 0:01:53.9]}
14... exd5 {[%clk 0:01:49.2]} 15. e5 {[%clk 0:01:52.9]} 15... d4 {[%clk
0:01:46.4]} 16. Bc4+ {[%clk 0:01:42.6]} 16... Kh8 {[%clk 0:01:44.9]} 17. a5
{[%clk 0:01:39.9]} 17... Qb4 {[%clk 0:01:36.1]} 18. Ra4 {[%clk 0:01:32.8]} 18...
dxc3 {[%clk 0:01:28.6]} 19. Rxb4 {[%clk 0:01:31.6]} 19... cxb4 {[%clk
0:01:25.7]} 20. exf6 {[%clk 0:01:27.8]} 20... Nxf6 {[%clk 0:01:23.8]} 21. O-O
{[%clk 0:01:17.7]} 21... Bxh3 {[%clk 0:01:20.5]} 22. gxh3 {[%clk 0:01:15.5]}
22... Rfe8 {[%clk 0:01:19.3]} 23. bxc3 {[%clk 0:01:13]} 23... bxc3 {[%clk
0:01:17]} 24. Qf3 {[%clk 0:01:06.6]} 24... Rac8 {[%clk 0:01:12.6]} 25. Bf7
{[%clk 0:01:04.4]} 25... Re7 {[%clk 0:01:12.1]} 26. Bb3 {[%clk 0:01:01.2]} 26...
c2 {[%clk 0:01:07]} 27. Bc1 {[%clk 0:00:51.1]} 27... Rec7 {[%clk 0:00:48.3]} 28.
Be6 {[%clk 0:00:47.3]} 28... Re8 {[%clk 0:00:33.1]} 29. f5 {[%clk 0:00:47.5]}
29... gxf5 {[%clk 0:00:30.1]} 30. Qxf5 {[%clk 0:00:47.6]} 30... Rce7 {[%clk
0:00:27.3]} 31. Bb3 {[%clk 0:00:45.1]} 31... Re5 {[%clk 0:00:20.5]} 32. Qxc2
{[%clk 0:00:43.3]} 32... Re2 {[%clk 0:00:20.1]} 33. Qf5 {[%clk 0:00:38.6]} 33...
Ne4 {[%clk 0:00:19.2]} 34. Bf7 {[%clk 0:00:23.3]} 34... Bd4+ {[%clk 0:00:18.6]}
35. Kh1 {[%clk 0:00:23.5]} 35... Rf8 {[%clk 0:00:12.5]} 36. Qd5 {[%clk
0:00:20.8]} 36... Bg7 {[%clk 0:00:07.5]} 37. Qd3 {[%clk 0:00:19.6]} 37... Nf2+
{[%clk 0:00:06.8]} 38. Rxf2 {[%clk 0:00:18.7]} 38... Rxf2 {[%clk 0:00:07.7]} 39.
Bc4 {[%clk 0:00:17.9]} 39... R2f3 {[%clk 0:00:05.3]} 40. Qd6 {[%clk 0:00:16.4]}
40... Rc3 {[%clk 0:00:04.4]} 41. Bb2 {[%clk 0:00:11.5]} 41... Rf2 {[%clk
0:00:01.8]} 42. Bxc3 {[%clk 0:00:09.1]} 1-0

[Event "Late-Titled-Tuesday-Blitz-March-05-2024"]
[Site "Chess.com"]
[Date "2024.03.05"]
[Round "6"]
[White "VojtechPlat"]
[Black "Bryanl106"]
[Result "1-0"]
[WhiteElo "2864"]
[BlackElo "2652"]
[TimeControl "180+1"]
[EndTime "15:05:34 PST"]
[Termination "VojtechPlat won by resignation"]

1. e4 {[%clk 0:02:59.6]} 1... e5 {[%clk 0:03:00.1]} 2. Nf3 {[%clk 0:02:59.6]}
2... Nc6 {[%clk 0:03:00.1]} 3. Bb5 {[%clk 0:02:59.5]} 3... a6 {[%clk 0:02:59.8]}
4. Ba4 {[%clk 0:02:59.4]} 4... Nf6 {[%clk 0:03:00.4]} 5. d4 {[%clk 0:02:59.8]}
5... exd4 {[%clk 0:02:55.3]} 6. O-O {[%clk 0:02:59.6]} 6... Be7 {[%clk
0:02:14.3]} 7. e5 {[%clk 0:02:58.1]} 7... Ne4 {[%clk 0:02:13]} 8. Bb3 {[%clk
0:02:51.9]} 8... Nc5 {[%clk 0:02:10.9]} 9. Bd5 {[%clk 0:02:51.6]} 9... Ne6
{[%clk 0:02:09.3]} 10. Nbd2 {[%clk 0:02:42.1]} 10... d6 {[%clk 0:02:07.9]} 11.
exd6 {[%clk 0:02:41.7]} 11... Qxd6 {[%clk 0:02:06.6]} 12. Be4 {[%clk 0:02:41.6]}
12... O-O {[%clk 0:02:05.5]} 13. Nc4 {[%clk 0:02:40.3]} 13... Qc5 {[%clk
0:02:04.3]} 14. Qe2 {[%clk 0:02:34.3]} 14... Bf6 {[%clk 0:01:59.9]} 15. a3
{[%clk 0:02:28.1]} 15... Re8 {[%clk 0:01:51.7]} 16. b4 {[%clk 0:02:27.7]} 16...
Qh5 {[%clk 0:01:48]} 17. Qd3 {[%clk 0:02:27.7]} 17... Bd7 {[%clk 0:01:38.1]} 18.
Bd2 {[%clk 0:02:27]} 18... Rad8 {[%clk 0:01:36.8]} 19. Rae1 {[%clk 0:02:26.8]}
19... Bc8 {[%clk 0:01:35.8]} 20. h3 {[%clk 0:02:20]} 20... Nf8 {[%clk
0:01:15.5]} 21. Bf4 {[%clk 0:02:15.3]} 21... Ne6 {[%clk 0:01:09.8]} 22. Bg3
{[%clk 0:02:15.2]} 22... g6 {[%clk 0:01:06.5]} 23. Bxc6 {[%clk 0:02:07.2]} 23...
bxc6 {[%clk 0:01:06.3]} 24. Nce5 {[%clk 0:02:07.5]} 24... c5 {[%clk 0:01:01.3]}
25. Ng4 {[%clk 0:01:52.1]} 25... Bg7 {[%clk 0:00:59.3]} 26. Be5 {[%clk
0:01:52.1]} 26... Qf5 {[%clk 0:00:45.9]} 27. Bxg7 {[%clk 0:01:40.8]} 27... Kxg7
{[%clk 0:00:46.8]} 28. Qc4 {[%clk 0:01:36.4]} 28... cxb4 {[%clk 0:00:36.2]} 29.
Re5 {[%clk 0:01:33.2]} 29... Qf4 {[%clk 0:00:36.5]} 30. axb4 {[%clk 0:01:27.9]}
30... h5 {[%clk 0:00:36.2]} 31. Ngh2 {[%clk 0:01:27.7]} 31... Bb7 {[%clk
0:00:35.3]} 32. Rfe1 {[%clk 0:01:26.5]} 32... Kg8 {[%clk 0:00:12.4]} 33. Qd3
{[%clk 0:01:25.4]} 33... Kg7 {[%clk 0:00:11.6]} 34. R5e2 {[%clk 0:01:14.9]}
34... Qf6 {[%clk 0:00:11.1]} 35. Qd2 {[%clk 0:01:13.4]} 35... Re7 {[%clk
0:00:10.7]} 36. Re5 {[%clk 0:01:07.4]} 36... Red7 {[%clk 0:00:11.1]} 37. h4
{[%clk 0:00:51.3]} 37... d3 {[%clk 0:00:10.8]} 38. c3 {[%clk 0:00:51.3]} 38...
Nf4 {[%clk 0:00:10.7]} 39. R1e3 {[%clk 0:00:43.9]} 39... Ne2+ {[%clk 0:00:06.5]}
40. Kf1 {[%clk 0:00:44.2]} 40... Nxc3 {[%clk 0:00:06.3]} 41. Ng5 {[%clk
0:00:34.2]} 41... Nd5 {[%clk 0:00:04.3]} 42. Re1 {[%clk 0:00:33.8]} 42... Nf4
{[%clk 0:00:03.7]} 43. Nhf3 {[%clk 0:00:33.9]} 43... Nxg2 {[%clk 0:00:02.8]} 44.
Kxg2 {[%clk 0:00:33.4]} 44... Rd4 {[%clk 0:00:03.7]} 45. Ne4 {[%clk 0:00:29.9]}
45... Bxe4 {[%clk 0:00:03.6]} 46. R5xe4 {[%clk 0:00:30.3]} 46... Rxe4 {[%clk
0:00:04]} 47. Rxe4 {[%clk 0:00:30.4]} 47... Rd5 {[%clk 0:00:04.8]} 48. Re3
{[%clk 0:00:27.4]} 48... Qf5 {[%clk 0:00:04.8]} 49. Qc3+ {[%clk 0:00:26.7]}
49... Kg8 {[%clk 0:00:04.9]} 50. Re8+ {[%clk 0:00:26.1]} 1-0